fUST/lending_fUST_20241216
["ID","MTS","AMOUNT","RATE_DAILY","PERIOD"]
[345545502,1734325845703,-1000.0,0.00027397,28]
[345545503,1734325845712,-704.835194,0.00027397,7]
[345545504,1734325845722,-1000.0,0.00027397,28]
[345545506,1734325845731,-704.835194,0.00027397,7]
[345545507,1734325845741,-1000.0,0.00027397,28]
[345545508,1734325845749,-1000.0,0.00027397,28]
[345545510,1734325845758,-500.0,0.00027397,7]
[345545511,1734325845767,-1000.0,0.00027397,28]
[345545512,1734325845776,-1000.0,0.00027397,28]
[345545513,1734325845786,-1000.0,0.00027397,28]
[345545514,1734325845795,-1000.0,0.00027397,28]
[345545515,1734325845804,-704.835194,0.00027397,7]
[345545517,1734325845813,-1000.0,0.00027397,28]
[345545518,1734325845822,-704.835194,0.00027397,7]
[345545519,1734325845832,-1000.0,0.00027397,28]
[345545520,1734325845841,-704.835194,0.00027397,7]
[345545521,1734325845850,-1000.0,0.00027397,28]
[345545522,1734325845860,-704.835194,0.00027397,7]
[345545523,1734325845869,-1000.0,0.00027397,28]
[345545524,1734325845878,-704.835197,0.00027397,7]
[345545525,1734325845887,-1000.0,0.00027397,28]
[345545526,1734325845896,-1000.0,0.00027397,28]
[345545527,1734325845905,-1000.0,0.00027397,28]
[345545528,1734325845914,-1000.0,0.00027397,28]
[345545529,1734325845929,-1000.0,0.00027397,28]
[345545530,1734325845938,-1000.0,0.00027397,28]
[345545531,1734325845947,-1000.0,0.00027397,28]
[345545532,1734325845957,-1000.0,0.00027397,28]
[345545533,1734325845966,-1000.0,0.00027397,28]
[345545534,1734325845975,-501.28668324,0.00027397,7]
[345545535,1734325845984,-1000.0,0.00027397,28]
[345545536,1734325845998,-1000.0,0.00027397,28]
[345545537,1734325846016,-1000.0,0.00027397,28]
[345545538,1734325846029,-1000.0,0.00027397,28]
[345545539,1734325846044,-1000.0,0.00027397,28]
[345545540,1734325846058,-1000.0,0.00027397,28]
[345545541,1734325846073,-1000.0,0.00027397,28]
[345545542,1734325846088,-1000.0,0.00027397,28]
[345545543,1734325846104,-1000.0,0.00027397,28]
[345545544,1734325846118,-1000.0,0.00027397,28]
[345545545,1734325846132,-1000.0,0.00027397,28]
[345545546,1734325846145,-508.1181696,0.00027397,7]
[345545547,1734325846160,-1000.0,0.00027397,28]
[345545548,1734325846173,-500.0,0.00027397,7]
[345545549,1734325846184,-1000.0,0.00027397,28]
[345545550,1734325846197,-1000.0,0.00027397,28]
[345545552,1734325846211,-1000.0,0.00027397,28]
[345545554,1734325846226,-500.0,0.00027397,7]
[345545557,1734325846242,-1000.0,0.00027397,28]
[345545560,1734325846257,-1000.0,0.00027397,28]
[345545562,1734325846273,-1000.0,0.00027397,28]
[345545564,1734325846284,-1000.0,0.00027397,28]
[345545567,1734325846296,-1000.0,0.00027397,28]
[345545569,1734325846310,-1000.0,0.00027397,28]
[345545572,1734325846325,-509.73882818,0.00027397,7]
[345545574,1734325846337,-1000.0,0.00027397,28]
[345545576,1734325846349,-1000.0,0.00027397,28]
[345545579,1734325846364,-1000.0,0.00027397,28]
[345545581,1734325846375,-1000.0,0.00027397,28]
[345545584,1734325846386,-1000.0,0.00027397,28]
[345545586,1734325846399,-1000.0,0.00027397,28]
[345545588,1734325846411,-1000.0,0.00027397,28]
[345545590,1734325846423,-1000.0,0.00027397,28]
[345545593,1734325846438,-1000.0,0.00027397,28]
[345545595,1734325846451,-1000.0,0.00027397,28]
[345545597,1734325846463,-1000.0,0.00027397,28]
[345545600,1734325846476,-1000.0,0.00027397,28]
[345545602,1734325846489,-1000.0,0.00027397,28]
[345545604,1734325846501,-1000.0,0.00027397,28]
[345545607,1734325846514,-1000.0,0.00027397,28]
[345545609,1734325846526,-1000.0,0.00027397,28]
[345545611,1734325846539,-1000.0,0.00027397,28]
[345545614,1734325846554,-1000.0,0.00027397,28]
[345545616,1734325846566,-500.0,0.00027397,7]
[345545618,1734325846578,-1000.0,0.00027397,28]
[345545621,1734325846590,-414.311672,0.00027397,7]
[345545623,1734325846602,-1000.0,0.00027397,28]
[345545625,1734325846615,-414.311672,0.00027397,7]
[345545628,1734325846628,-414.311672,0.00027397,7]
[345545630,1734325846640,-1000.0,0.00027397,28]
[345545632,1734325846652,-414.311672,0.00027397,7]
[345545635,1734325846665,-1000.0,0.00027397,28]
[345545637,1734325846677,-414.311672,0.00027397,7]
[345545639,1734325846689,-1000.0,0.00027397,28]
[345545642,1734325846701,-1000.0,0.00027397,28]
[345545644,1734325846713,-501.12807712,0.00027397,7]
[345545646,1734325846725,-1000.0,0.00027397,28]
[345545648,1734325846736,-1000.0,0.00027397,28]
[345545651,1734325846748,-1000.0,0.00027397,28]
[345545653,1734325846762,-1000.0,0.00027397,28]
[345545655,1734325846774,-414.311672,0.00027397,7]
[345545658,1734325846787,-414.311672,0.00027397,7]
[345545660,1734325846799,-1000.0,0.00027397,28]
[345545662,1734325846811,-1000.0,0.00027397,28]
[345545665,1734325846824,-414.311672,0.00027397,7]
[345545667,1734325846834,-1000.0,0.00027397,28]
[345545669,1734325846843,-414.311672,0.00027397,7]
[345545683,1734325846966,-1000.0,0.00027397,28]
[345545685,1734325846979,-414.311672,0.00027397,7]
[345545687,1734325846988,-1000.0,0.00027397,28]
[345545689,1734325846998,-1000.0,0.00027397,28]
[345545691,1734325847007,-1000.0,0.00027397,28]
[345545693,1734325847017,-1000.0,0.00027397,28]
[345545695,1734325847026,-1000.0,0.00027397,28]
[345545697,1734325847037,-502.6126415,0.00027397,7]
[345545699,1734325847048,-1000.0,0.00027397,28]
[345545701,1734325847060,-1000.0,0.00027397,28]
[345545703,1734325847070,-1000.0,0.00027397,28]
[345545705,1734325847079,-1000.0,0.00027397,28]
[345545707,1734325847089,-1000.0,0.00027397,28]
[345545709,1734325847099,-722.365631,0.00027397,28]
[345545711,1734325847108,-502.30082414,0.00027397,7]
[345545713,1734325847118,-259.74414,0.00027397,7]
[345545715,1734325847127,-259.74414,0.00027397,7]
[345545717,1734325847136,-259.74414,0.00027397,7]
[345545719,1734325847146,-259.74414,0.00027397,7]
[345545721,1734325847155,-259.74414,0.00027397,7]
[345545723,1734325847164,-261.62976515,0.00027397,7]
[345545725,1734325847174,-259.74414,0.00027397,7]
[345545727,1734325847183,-259.74414,0.00027397,7]
[345545729,1734325847193,-259.74414,0.00027397,7]
[345545731,1734325847202,-259.74414,0.00027397,7]
[345545733,1734325847211,-259.74414,0.00027397,7]
[345545735,1734325847220,-510.39780587,0.00027397,7]
[345545737,1734325847233,-510.09281298,0.00027397,7]
[345545739,1734325847242,-500.0,0.00027397,7]
[345545741,1734325847252,-500.0,0.00027397,7]
[345545743,1734325847261,-504.23845061,0.00027397,7]
[345545745,1734325847271,-1305.283138,0.00027397,7]
[345545747,1734325847280,-1305.283138,0.00027397,7]
[345545749,1734325847292,-1305.283138,0.00027397,7]
[345545751,1734325847301,-500.0,0.00027397,7]
[345545753,1734325847310,-1305.283138,0.00027397,7]
[345545755,1734325847320,-1305.283138,0.00027397,7]
[345545757,1734325847329,-1305.283138,0.00027397,7]
[345545759,1734325847338,-500.0,0.00027397,7]
[345545761,1734325847347,-1305.283138,0.00027397,7]
[345545763,1734325847357,-500.0,0.00027397,7]
[345545765,1734325847367,-1305.283138,0.00027397,7]
[345545767,1734325847377,-500.0,0.00027397,7]
[345545768,1734325847387,-503.58147177,0.00027397,7]
[345545769,1734325847396,-1305.283138,0.00027397,7]
[345545770,1734325847405,-1305.283138,0.00027397,7]
[345545771,1734325847415,-500.0,0.00027397,7]
[345545772,1734325847424,-500.0,0.00027397,7]
[345545773,1734325847436,-507.89115124,0.00027397,7]
[345545774,1734325847446,-500.57159208,0.00027397,7]
[345545775,1734325847455,-502.2816151,0.00027397,7]
[345545776,1734325847465,-503.3912217,0.00027397,7]
[345545777,1734325847475,-500.0,0.00027397,7]
[345545778,1734325847485,-500.0,0.00027397,7]
[345545779,1734325847495,-505.1567009,0.00027397,7]
[345545780,1734325847507,-196.22289417,0.00027397,7]
[345545781,1734325847518,-315.91856675,0.00027397,7]
[345545782,1734325847528,-504.07667657,0.00027397,7]
[345545783,1734325847539,-499.65854751,0.00027397,7]
[345545784,1734325847549,-501.89897822,0.00027397,7]
[345545785,1734325847558,-506.55125742,0.00027397,7]
[345545786,1734325847567,-509.81021478,0.00027397,7]
[345545787,1734325847577,-500.0,0.00027397,7]
[345545788,1734325847587,-502.23468975,0.00027397,7]
[345545789,1734325847597,-503.56348278,0.00027397,7]
[345545790,1734325847607,-504.7159423,0.00027397,7]
[345545791,1734325847616,-730.442136,0.00027397,7]
[345545792,1734325847625,-730.442136,0.00027397,7]
[345545793,1734325847635,-730.442136,0.00027397,7]
[345545794,1734325847645,-730.442136,0.00027397,7]
[345545795,1734325847655,-730.442136,0.00027397,7]
[345545796,1734325847665,-502.86741157,0.00027397,7]
[345545797,1734325847675,-730.442136,0.00027397,7]
[345545798,1734325847684,-500.0,0.00027397,7]
[345545799,1734325847694,-730.442136,0.00027397,7]
[345545800,1734325847704,-730.442136,0.00027397,7]
[345545801,1734325847714,-730.442136,0.00027397,7]
[345545802,1734325847723,-730.442136,0.00027397,7]
[345545803,1734325847733,-505.38685492,0.00027397,7]
[345545804,1734325847742,-500.0,0.00027397,7]
[345545805,1734325847752,-500.0,0.00027397,7]
[345545806,1734325847761,-500.0,0.00027397,7]
[345545807,1734325847772,-502.38289523,0.00027397,7]
[345545808,1734325847782,-151.0,0.00027397,7]
[345545809,1734325847794,-151.0,0.00027397,7]
[345545810,1734325847804,-151.0,0.00027397,7]
[345545811,1734325847814,-151.0,0.00027397,7]
[345545812,1734325847824,-151.0,0.00027397,7]
[345545813,1734325847833,-502.62402525,0.00027397,7]
[345545814,1734325847844,-500.0,0.00027397,7]
[345545815,1734325847854,-156.591368,0.00027397,7]
[345545816,1734325847864,-502.60549531,0.00027397,7]
[345545817,1734325847874,-281.62180116,0.00027397,7]
[345545818,1734325847883,-500.0,0.00027397,7]
[345545819,1734325847893,-505.16453108,0.00027397,7]
[345545820,1734325847902,-627.07539368,0.00027397,7]
[345545821,1734325847911,-151.0,0.00027397,7]
[345545822,1734325847921,-151.0,0.00027397,7]
[345545823,1734325847931,-151.0,0.00027397,7]
[345545824,1734325847940,-502.63779928,0.00027397,7]
[345545825,1734325847950,-151.0,0.00027397,7]
[345545826,1734325847960,-151.0,0.00027397,7]
[345545827,1734325847970,-188.66672715,0.00027397,7]
[345545828,1734325847979,-505.44054422,0.00027397,7]
[345545829,1734325847990,-505.78228069,0.00027397,7]
[345545830,1734325848000,-503.72622432,0.00027397,7]
[345545831,1734325848009,-500.0,0.00027397,7]
[345545832,1734325848018,-501.74049719,0.00027397,7]
[345545833,1734325848028,-500.0,0.00027397,7]
[345545834,1734325848038,-582.99,0.00027397,7]
[345545835,1734325848048,-500.0,0.00027397,7]
[345545836,1734325848057,-500.0,0.00027397,7]
[345545837,1734325848067,-500.0,0.00027397,7]
[345545838,1734325848077,-500.0,0.00027397,7]
[345545839,1734325848087,-506.03387085,0.00027397,7]
[345545840,1734325848097,-500.0,0.00027397,7]
[345545841,1734325848107,-500.0,0.00027397,7]
[345545842,1734325848118,-506.81841463,0.00027397,7]
[345545843,1734325848128,-268.77703896,0.00027397,7]
[345545844,1734325848138,-500.0,0.00027397,7]
[345545845,1734325848148,-337.228978,0.00027397,7]
[345545846,1734325848157,-337.228978,0.00027397,7]
[345545847,1734325848167,-337.228978,0.00027397,7]
[345545848,1734325848177,-337.228978,0.00027397,7]
[345545849,1734325848187,-337.228978,0.00027397,7]
[345545850,1734325848197,-500.0,0.00027397,7]
[345545851,1734325848206,-502.7328526,0.00027397,7]
[345545852,1734325848215,-337.228978,0.00027397,7]
[345545853,1734325848225,-337.228978,0.00027397,7]
[345545854,1734325848236,-337.228978,0.00027397,7]
[345545855,1734325848246,-337.228978,0.00027397,7]
[345545856,1734325848256,-337.228979,0.00027397,7]
[345545857,1734325848270,-500.0,0.00027397,7]
[345545858,1734325848280,-500.0,0.00027397,7]
[345545859,1734325848291,-529.51124773,0.00027397,7]
[345545860,1734325848302,-500.0,0.00027397,7]
[345545861,1734325848312,-500.0,0.00027397,7]
[345545862,1734325848322,-501.14957545,0.00027397,7]
[345545863,1734325848331,-1771.85,0.00027397,7]
[345545864,1734325848341,-500.0,0.00027397,7]
[345545865,1734325848350,-500.0,0.00027397,7]
[345545866,1734325848360,-595.96,0.00027397,7]
[345545867,1734325848370,-500.0,0.00027397,7]
[345545868,1734325848379,-500.0,0.00027397,7]
[345545869,1734325848388,-500.0,0.00027397,7]
[345545870,1734325848398,-500.0,0.00027397,7]
[345545871,1734325848409,-501.65514152,0.00027397,7]
[345545872,1734325848419,-575.98209972,0.00027397,7]
[345545873,1734325848430,-229.11721888,0.00027397,7]
[345545874,1734325848441,-500.47449633,0.00027397,7]
[345545875,1734325848450,-500.0,0.00027397,7]
[345545876,1734325848460,-500.0,0.00027397,7]
[345545877,1734325848471,-500.0,0.00027397,7]
[345545878,1734325848482,-500.0,0.00027397,7]
[345545879,1734325848492,-500.0,0.00027397,7]
[345545880,1734325848502,-501.15342139,0.00027397,7]
[345545881,1734325848511,-500.0,0.00027397,7]
[345545882,1734325848521,-500.0,0.00027397,7]
[345545883,1734325848531,-500.0,0.00027397,7]
[345545884,1734325848541,-500.0,0.00027397,7]
[345545885,1734325848552,-500.0,0.00027397,7]
[345545886,1734325848562,-500.0,0.00027397,7]
[345545887,1734325848572,-695.01,0.00027397,5]
[345545888,1734325848581,-151.0,0.00027397,7]
[345545889,1734325848590,-500.0,0.00027397,7]
[345545890,1734325848600,-151.0,0.00027397,7]
[345545891,1734325848610,-151.0,0.00027397,7]
[345545892,1734325848619,-151.0,0.00027397,7]
[345545893,1734325848628,-510.44211641,0.00027397,7]
[345545894,1734325848638,-151.0,0.00027397,7]
[345545895,1734325848647,-500.0,0.00027397,7]
[345545896,1734325848657,-500.74514755,0.00027397,7]
[345545897,1734325848666,-890.41,0.00027397,7]
[345545898,1734325848676,-1371.030753,0.00027397,7]
[345545899,1734325848686,-1371.030753,0.00027397,7]
[345545900,1734325848695,-1371.030753,0.00027397,7]
[345545901,1734325848705,-500.0,0.00027397,7]
[345545902,1734325848716,-1371.030753,0.00027397,7]
[345545903,1734325848727,-1371.030753,0.00027397,7]
[345545904,1734325848737,-500.0,0.00027397,7]
[345545905,1734325848747,-1371.030753,0.00027397,7]
[345545906,1734325848758,-1371.030753,0.00027397,7]
[345545907,1734325848768,-1371.030753,0.00027397,7]
[345545908,1734325848778,-1371.030753,0.00027397,7]
[345545909,1734325848790,-1371.030756,0.00027397,7]
[345545910,1734325848800,-500.0,0.00027397,7]
[345545911,1734325848810,-500.0,0.00027397,7]
[345545912,1734325848820,-167.20725077,0.00027397,7]
[345545913,1734325848830,-500.0,0.00027397,7]
[345545914,1734325848840,-500.0,0.00027397,7]
[345545915,1734325848934,-68254.04,0.00027397,7]
[345545916,1734325848944,-501.79564149,0.00027397,7]
[345545917,1734325848954,-491.52401525,0.00027397,7]
[345545918,1734325848964,-502.53004187,0.00027397,7]
[345545919,1734325848973,-512.24222871,0.00027397,7]
[345545920,1734325848983,-503.05047602,0.00027397,7]
[345545921,1734325848993,-501.65462542,0.00027397,7]
[345545922,1734325849004,-500.0,0.00027397,7]
[345545923,1734325849014,-500.0,0.00027397,7]
[345545924,1734325849025,-501.2055227,0.00027397,7]
[345545925,1734325849035,-500.98404456,0.00027397,7]
[345545926,1734325849046,-2859.63,0.00027397,7]
[345545927,1734325849056,-411.62151465,0.00027397,7]
[345545928,1734325849066,-500.0,0.00027397,7]
[345545929,1734325849076,-500.0,0.00027397,7]
[345545930,1734325849086,-501.51146595,0.00027397,7]
[345545931,1734325849096,-500.0,0.00027397,7]
[345545932,1734325849105,-628.29501065,0.00027397,7]
[345545933,1734325849115,-597.598134,0.00027397,7]
[345545934,1734325849125,-597.598134,0.00027397,7]
[345545935,1734325849135,-597.598134,0.00027397,7]
[345545936,1734325849144,-597.598134,0.00027397,7]
[345545937,1734325849154,-597.598134,0.00027397,7]
[345545938,1734325849164,-500.0,0.00027397,7]
[345545939,1734325849174,-597.598134,0.00027397,7]
[345545940,1734325849184,-500.0,0.00027397,7]
[345545941,1734325849194,-597.598134,0.00027397,7]
[345545942,1734325849203,-153.53911,0.00027397,7]
[345545943,1734325849213,-597.598134,0.00027397,7]
[345545944,1734325849222,-153.53911,0.00027397,7]
[345545945,1734325849232,-597.598134,0.00027397,7]
[345545946,1734325849241,-153.53911,0.00027397,7]
[345545947,1734325849251,-597.598134,0.00027397,7]
[345545948,1734325849260,-153.53911,0.00027397,7]
[345545949,1734325849270,-153.53911,0.00027397,7]
[345545950,1734325849280,-597.598134,0.00027397,7]
[345545951,1734325849292,-597.59813842,0.00027397,7]
[345545952,1734325849302,-503.64487229,0.00027397,7]
[345545953,1734325849311,-500.0,0.00027397,7]
[345545954,1734325849321,-501.2076488,0.00027397,7]
[345545955,1734325849331,-500.0,0.00027397,7]
[345545956,1734325849340,-153.53911,0.00027397,7]
[345545957,1734325849350,-153.53911,0.00027397,7]
[345545958,1734325849360,-153.53911,0.00027397,7]
[345545959,1734325849370,-1589.14,0.00027397,7]
[345545960,1734325849381,-153.53911,0.00027397,7]
[345545961,1734325849391,-500.0,0.00027397,7]
[345545962,1734325849400,-153.539112,0.00027397,7]
[345545963,1734325849410,-725.864845,0.00027397,7]
[345545964,1734325849421,-725.864845,0.00027397,7]
[345545965,1734325849432,-835.38,0.00027397,7]
[345545966,1734325849442,-725.864845,0.00027397,7]
[345545967,1734325849452,-725.864845,0.00027397,7]
[345545968,1734325849462,-500.0,0.00027397,7]
[345545969,1734325849472,-500.0,0.00027397,7]
[345545970,1734325849483,-725.864845,0.00027397,7]
[345545971,1734325849493,-500.0,0.00027397,7]
[345545972,1734325849504,-725.864845,0.00027397,7]
[345545973,1734325849513,-539.10103757,0.00027397,7]
[345545974,1734325849524,-725.864845,0.00027397,7]
[345545975,1734325849534,-725.864845,0.00027397,7]
[345545976,1734325849545,-725.864845,0.00027397,7]
[345545977,1734325849555,-725.864846,0.00027397,7]
[345545978,1734325849564,-500.0,0.00027397,7]
[345545979,1734325849574,-500.0,0.00027397,7]
[345545980,1734325849583,-500.0,0.00027397,7]
[345545981,1734325849593,-891.518572,0.00027397,7]
[345545982,1734325849603,-891.518572,0.00027397,7]
[345545983,1734325849613,-891.518572,0.00027397,7]
[345545984,1734325849623,-891.518572,0.00027397,7]
[345545985,1734325849633,-891.518572,0.00027397,7]
[345545986,1734325849643,-891.518572,0.00027397,7]
[345545987,1734325849653,-502.53068108,0.00027397,7]
[345545988,1734325849662,-891.518572,0.00027397,7]
[345545989,1734325849672,-891.518572,0.00027397,7]
[345545990,1734325849682,-891.518572,0.00027397,7]
[345545991,1734325849692,-891.518572,0.00027397,7]
[345545992,1734325849702,-891.518572,0.00027397,7]
[345545993,1734325849711,-891.518579,0.00027397,7]
[345545994,1734325849722,-500.0,0.00027397,7]
[345545995,1734325849731,-500.0,0.00027397,7]
[345545996,1734325849740,-500.0,0.00027397,7]
[345545997,1734325849750,-195.68453638,0.00027397,7]
[345545998,1734325849760,-500.0,0.00027397,7]
[345545999,1734325849770,-500.0,0.00027397,2]
[345546000,1734325849780,-500.0,0.00027397,7]
[345546001,1734325849793,-488.87686724,0.00027397,7]
[345546002,1734325849805,-235.891878,0.00027397,7]
[345546003,1734325849816,-235.891878,0.00027397,7]
[345546004,1734325849825,-235.891878,0.00027397,7]
[345546005,1734325849835,-235.891878,0.00027397,7]
[345546006,1734325849846,-235.891878,0.00027397,7]
[345546007,1734325849855,-500.0,0.00027397,7]
[345546008,1734325849865,-500.0,0.00027397,7]
[345546009,1734325849875,-235.891878,0.00027397,7]
[345546010,1734325849885,-235.891878,0.00027397,7]
[345546011,1734325849895,-501.44422984,0.00027397,7]
[345546012,1734325849905,-235.891878,0.00027397,7]
[345546013,1734325849914,-235.891878,0.00027397,7]
[345546014,1734325849924,-501.70061613,0.00027397,7]
[345546015,1734325849934,-500.0,0.00027397,7]
[345546016,1734325849944,-235.891884,0.00027397,7]
[345546017,1734325849953,-504.70811558,0.00027397,7]
[345546018,1734325849963,-500.38492864,0.00027397,2]
[345546019,1734325849972,-506.13897432,0.00027397,7]
[345546020,1734325849981,-501.84630422,0.00027397,7]
[345546021,1734325849991,-500.0,0.00027397,7]
[345546022,1734325850001,-500.0,0.00027397,7]
[345546023,1734325850010,-157.82033491,0.00027397,2]
[345546024,1734325850019,-5182.0944052,0.00027397,2]
[345546025,1734325850029,-161.09788,0.00027397,7]
[345546026,1734325850038,-151.0,0.000274,17]
[345546027,1734325850048,-166.0,0.00027417,3]
[345546028,1734325850058,-166.0,0.00027417,3]
[345546029,1734325850067,-168.0,0.00027417,3]
[345546030,1734325850079,-154.99692029,0.00027466,21]
[345546031,1734325850089,-151.0,0.00027486,6]
[345546032,1734325850098,-1405.25718875,0.000275,2]
[345546033,1734325850107,-157.82033491,0.00027562,2]
[345546034,1734325850117,-1759.39056239,0.00027565,3]
[345546035,1734325850126,-151.0,0.00027565,7]
[345546036,1734325850136,-275.283622,0.00027565,7]
[345546037,1734325850145,-275.283622,0.00027565,7]
[345546038,1734325850154,-151.0,0.00027565,7]
[345546039,1734325850164,-151.0,0.00027565,7]
[345546040,1734325850174,-151.0,0.00027565,7]
[345546041,1734325850183,-151.0,0.00027565,7]
[345546042,1734325850193,-151.0,0.00027565,7]
[345546043,1734325850202,-151.0,0.00027565,7]
[345546044,1734325850212,-666.0,0.00027566,2]
[345546045,1734325850222,-5735.3756604,0.00027575,2]
[345546046,1734325850231,-164.131626,0.00027665,7]
[345546047,1734325850240,-616.310177,0.00027665,7]
[345546048,1734325850250,-616.310177,0.00027665,7]
[345546049,1734325850260,-616.310177,0.00027665,7]
[345546050,1734325850271,-616.310177,0.00027665,7]
[345546051,1734325850280,-616.310177,0.00027665,7]
[345546052,1734325850291,-616.310177,0.00027665,7]
[345546053,1734325850300,-616.310177,0.00027665,7]
[345546054,1734325850309,-616.310177,0.00027665,7]
[345546055,1734325850318,-151.0,0.00027665,7]
[345546056,1734325850327,-151.0,0.00027665,7]
[345546057,1734325850337,-1232.315511,0.00027665,7]
[345546058,1734325850347,-1232.315511,0.00027665,7]
[345546059,1734325850356,-154.773683,0.00027665,7]
[345546060,1734325850366,-151.0,0.00027665,7]
[345546061,1734325850376,-151.0,0.00027665,7]
[345546062,1734325850386,-151.0,0.00027665,7]
[345546063,1734325850396,-244.664963,0.00027665,7]
[345546064,1734325850406,-191.110482,0.00027665,7]
[345546065,1734325850415,-191.110481,0.00027665,7]
[345546066,1734325850429,-414.311672,0.00027665,7]
[345546067,1734325850443,-414.311682,0.00027665,7]
[345546068,1734325850452,-259.74414,0.00027665,7]
[345546069,1734325850462,-259.744142,0.00027665,7]
[345546070,1734325850472,-1305.283138,0.00027665,7]
[345546071,1734325850483,-1305.283143,0.00027665,7]
[345546072,1734325850493,-730.442136,0.00027665,7]
[345546073,1734325850503,-730.442141,0.00027665,7]
[345546074,1734325850513,-151.0,0.00027666,7]
[345546075,1734325850523,-275.283622,0.00027666,7]
[345546076,1734325850533,-275.283622,0.00027666,7]
[345546077,1734325850544,-227.701147,0.00027667,7]
[345546078,1734325850554,-227.701147,0.00027667,7]
[345546079,1734325850564,-227.701147,0.00027667,7]
[345546080,1734325850575,-227.701147,0.00027667,7]
[345546081,1734325850585,-227.701147,0.00027667,7]
[345546082,1734325850595,-227.701147,0.00027667,7]
[345546083,1734325850604,-151.0,0.00027667,7]
[345546084,1734325850614,-151.0,0.00027667,7]
[345546085,1734325850623,-151.0,0.00027667,7]
[345546086,1734325850633,-616.310177,0.00027667,7]
[345546087,1734325850643,-616.310177,0.00027667,7]
[345546088,1734325850652,-151.0,0.00027668,7]
[345546089,1734325850739,-151.0,0.00027668,7]
[345546090,1734325850750,-1232.315511,0.00027668,7]
[345546091,1734325850761,-1232.315519,0.00027668,7]
[345546092,1734325850771,-227.701147,0.00027669,7]
[345546093,1734325850781,-227.701147,0.00027669,7]
[345546094,1734325850792,-151.0,0.00027669,7]
[345546095,1734325850803,-151.0,0.00027669,7]
[345546096,1734325850812,-275.283622,0.00027669,7]
[345546097,1734325850821,-275.283631,0.00027669,7]
[345546098,1734325850831,-227.701147,0.00027671,7]
[345546099,1734325850841,-227.701147,0.00027671,7]
[345546100,1734325850850,-227.701147,0.00027671,7]
[345546101,1734325850860,-227.701147,0.00027671,7]
[345546102,1734325850870,-151.0,0.00027671,7]
[345546103,1734325850879,-151.0,0.00027671,7]
[345546104,1734325850888,-507.95315676,0.00027671,7]
[345546105,1734325850898,-425.22870184,0.00027671,7]
[345546106,1734325850907,-500.0,0.00027671,7]
[345546107,1734325850917,-500.0,0.00027671,7]
[345546108,1734325850926,-500.0,0.00027671,7]
[345546109,1734325850936,-509.93032164,0.00027671,7]
[345546110,1734325850945,-505.04767068,0.00027671,7]
[345546111,1734325850955,-500.0,0.00027671,7]
[345546112,1734325850964,-500.0,0.00027671,7]
[345546113,1734325850973,-503.62042531,0.00027671,7]
[345546114,1734325850983,-500.0,0.00027671,7]
[345546115,1734325850992,-500.0,0.00027671,7]
[345546116,1734325851002,-196.20937865,0.00027671,7]
[345546117,1734325851011,-502.37854492,0.00027671,7]
[345546118,1734325851021,-500.0,0.00027671,7]
[345546119,1734325851030,-506.22579799,0.00027671,7]
[345546120,1734325851041,-503.5881907,0.00027671,7]
[345546121,1734325851050,-502.73270547,0.00027671,7]
[345546122,1734325851059,-507.20653829,0.00027671,7]
[345546123,1734325851068,-502.6579722,0.00027671,7]
[345546124,1734325851078,-500.0,0.00027671,2]
[345546125,1734325851087,-500.0,0.00027671,7]
[345546126,1734325851096,-500.0,0.00027671,7]
[345546127,1734325851106,-502.8101452,0.00027671,7]